[Event "Prague Festival Open 2022"]
[Site "Prague"]
[Date "2022.06.14"]
[Round "6.1"]
[White "Motylev, Alexander"]
[Black "Santiago, Yago De Moura"]
[Result "1/2-1/2"]
[ECO "B12"]
[WhiteElo "2633"]
[BlackElo "2498"]
[Annotator "RC"]
[PlyCount "45"]
[EventDate "2022.06.10"]
[EventType "swiss"]
[EventCountry "CZE"]
[SourceTitle "playchess.com"]
[Source "ChessBase"]
[SourceQuality "1"]
[TimeControl "40/5400+30:1800+30"]

1. e4 {[%emt 0:00:03]} c6 {[%emt 0:00:13]} 2. d4 {[%emt 0:00:18]} d5 {[%emt 0:00:08]} 3. e5 {[%emt 0:00:05]} c5 {[%emt 0:00:08]} 4. Nf3 {[%emt 0:01:06]} cxd4 {[%emt 0:00:42]} 5. Nxd4 {[%emt 0:00:06]} Nc6 {[%emt 0:00:26]} 6. Nxc6 {[%emt 0:00:06]} bxc6 {[%emt 0:00:05]} 7. Bd3 {[%emt 0:00:04]} e6 {[%emt 0:01:57]} 8. O-O {[%emt 0:00:09]} a5 {[%emt 0:00:08]} 9. Re1 {[%emt 0:00:32]} Ne7 {[%emt 0:00:19]} 10. c3 {[%emt 0:00:19]} Ng6 {[%emt 0:03:54]} 11. Nd2 {[%emt 0:01:17]} Bc5 {[%emt 0:02:36]} 12. Nf3 {[%emt 0:02:07]} O-O {[%emt 0:03:08]} 13. Nd4 {[%emt 0:06:57]} f6 {[%emt 0:21:30]} 14. Bxg6 {[%emt 0:06:41]} hxg6 {[%emt 0:00:07]} 15. Be3 {[%emt 0:00:57]} Bxd4 {[%emt 0:16:37]} 16. Bxd4 {[%emt 0:27:01]} f5 {[%emt 0:08:46]} 17. Bc5 {[%emt 0:01:51]} Rf7 {[%emt 0:01:11]} 18. a4 {[%emt 0:03:46]} g5 {[%emt 0:06:02]} 19. Re3 {[%emt 0:04:07]} g4 {[%emt 0:08:01]} 20. h3 {[%emt 0:08:19]} f4 {[%emt 0:01:32]} 21. Rd3 {[%emt 0:01:25]} Ba6 {[%emt 0:01:00]} 22. Rd4 {[%emt 0:00:13]} gxh3 {[%emt 0:05:24]} 23. Qg4 {[%emt 0:04:23]} 1/2-1/2

[Event "Prague Festival Open 2022"]
[Site "Prague"]
[Date "2022.06.14"]
[Round "6.2"]
[White "Iniyan, P."]
[Black "Raja Harshit"]
[Result "1/2-1/2"]
[ECO "C54"]
[WhiteElo "2518"]
[BlackElo "2479"]
[Annotator "RC"]
[PlyCount "146"]
[EventDate "2022.06.10"]
[EventType "swiss"]
[EventCountry "CZE"]
[SourceTitle "playchess.com"]
[Source "ChessBase"]
[SourceQuality "1"]
[TimeControl "40/5400+30:1800+30"]

1. e4 {[%emt 0:08:53]} e5 {[%emt 0:00:12]} 2. Nf3 {[%emt 0:00:15]} Nc6 {[%emt 0:00:10]} 3. Bc4 {[%emt 0:00:25]} Nf6 {[%emt 0:00:12]} 4. d3 {[%emt 0:00:10]} Bc5 {[%emt 0:00:40]} 5. c3 {[%emt 0:00:13]} d6 {[%emt 0:01:14]} 6. h3 {[%emt 0:00:42]} h6 {[%emt 0:01:07]} 7. Bb3 {[%emt 0:00:51]} Qe7 {[%emt 0:03:21]} 8. a4 {[%emt 0:05:35]} a5 {[%emt 0:01:51]} 9. Na3 {[%emt 0:00:27]} Be6 {[%emt 0:03:06]} 10. Nc4 {[%emt 1:17:59]} Rd8 {[%emt 0:07:39]} 11. Qe2 {[%emt 0:00:00]} d5 {[%emt 0:07:14]} 12. exd5 {[%emt 0:00:00]} Bxd5 {[%emt 0:00:27]} 13. Bc2 {[%emt 0:01:30]} Bxc4 {[%emt 0:07:49]} 14. dxc4 {[%emt 0:00:00]} e4 {[%emt 0:00:33]} 15. Nd2 {[%emt 0:00:00]} e3 {[%emt 0:07:28]} 16. fxe3 {[%emt 0:00:00]} O-O {[%emt 0:00:29]} 17. Nb3 {[%emt 0:00:00]} Ne4 {[%emt 0:08:45]} 18. Bxe4 {[%emt 0:00:00]} Qh4+ {[%emt 0:00:38]} 19. Qf2 {[%emt 0:00:00]} Qxe4 {[%emt 0:00:07]} 20. Nxc5 {[%emt 0:00:00]} Qxc4 {[%emt 0:00:06]} 21. Nxb7 {[%emt 0:00:00]} Rd5 {[%emt 0:04:10]} 22. Qe2 {[%emt 0:00:00]} Qh4+ {[%emt 0:03:01]} 23. Kf1 {[%emt 0:00:00]} Rf5+ {[%emt 0:05:40]} 24. Kg1 {[%emt 0:00:00]} Rb8 {[%emt 0:01:17]} 25. e4 {[%emt 0:00:00]} Re8 {[%emt 0:08:16]} 26. Qg4 {[%emt 0:00:00]} Qf2+ {[%emt 0:00:18]} 27. Kh2 {[%emt 0:00:00]} Rf6 {[%emt 0:00:03]} 28. Qg3 {[%emt 0:00:00]} Qb6 {[%emt 0:00:16]} 29. Nxa5 {[%emt 0:00:00]} Nxa5 {[%emt 0:00:52]} 30. b4 {[%emt 0:00:00]} Nc4 {[%emt 0:02:08]} 31. Bf4 {[%emt 0:04:54]} Rxe4 {[%emt 0:01:45]} 32. Rhf1 {[%emt 0:00:52]} Qe6 {[%emt 0:02:26]} 33. Rae1 {[%emt 0:01:30]} g5 {[%emt 0:10:03]} 34. Bxg5 {[%emt 0:02:25]} Rxf1 {[%emt 0:02:54]} 35. Bxh6+ {[%emt 0:00:45]} Rg4 {[%emt 0:00:10]} 36. Rxe6 {[%emt 0:00:24]} Rxg3 {[%emt 0:00:07]} 37. Re8+ {[%emt 0:00:02]} Kh7 {[%emt 0:00:05]} 38. Kxg3 {[%emt 0:00:05]} Kxh6 {[%emt 0:00:04]} 39. Rc8 {[%emt 0:00:41]} Nb6 {[%emt 0:00:36]} 40. Rxc7 {[%emt 0:00:03]} Nxa4 {[%emt 0:00:05]} 41. b5 {[%emt 0:04:09]} Kg7 {[%emt 0:08:00]} 42. c4 {[%emt 0:08:51]} Rb1 {[%emt 0:01:11]} 43. Kf4 {[%emt 0:02:00]} Nb6 {[%emt 0:00:16]} 44. Rc6 {[%emt 0:00:11]} Nxc4 {[%emt 0:00:09]} 45. Rxc4 {[%emt 0:00:03]} Rxb5 {[%emt 0:00:06]} 46. h4 {[%emt 0:01:07]} Rb1 {[%emt 0:01:36]} 47. Rc5 {[%emt 0:02:20]} Kg6 {[%emt 0:02:21]} 48. h5+ {[%emt 0:00:33]} Kh6 {[%emt 0:01:08]} 49. Rc6+ {[%emt 0:00:08]} Kg7 {[%emt 0:00:30]} 50. h6+ {[%emt 0:02:18]} Kh7 {[%emt 0:00:12]} 51. Rf6 {[%emt 0:00:04]} Rb2 {[%emt 0:04:24]} 52. g3 {[%emt 0:00:21]} Rb4+ {[%emt 0:06:08]} 53. Kg5 {[%emt 0:00:18]} Rb5+ {[%emt 0:00:11]} 54. Kh4 {[%emt 0:00:31]} Kg8 {[%emt 0:07:32]} 55. g4 {[%emt 0:00:13]} Rb1 {[%emt 0:01:55]} 56. Kh5 {[%emt 0:03:55]} Ra1 {[%emt 0:01:06]} 57. Rf5 {[%emt 0:01:09]} Ra6 {[%emt 0:01:26]} 58. Rg5+ {[%emt 0:01:46]} Kh8 {[%emt 0:00:07]} 59. Rd5 {[%emt 0:01:10]} Kh7 {[%emt 0:01:05]} 60. g5 {[%emt 0:00:08]} Ra4 {[%emt 0:01:06]} 61. Rd7 {[%emt 0:01:03]} Kg8 {[%emt 0:00:25]} 62. Rd8+ {[%emt 0:01:04]} Kh7 {[%emt 0:00:02]} 63. Rd1 {[%emt 0:00:57]} Rf4 {[%emt 0:01:59]} 64. Rd7 {[%emt 0:00:32]} Kg8 {[%emt 0:01:16]} 65. Rd8+ {[%emt 0:00:25]} Kh7 {[%emt 0:00:01]} 66. Rf8 {[%emt 0:00:08]} Rf1 {[%emt 0:00:51]} 67. Kg4 {[%emt 0:00:09]} Kg6 {[%emt 0:00:30]} 68. Rg8+ {[%emt 0:01:34]} Kh7 {[%emt 0:00:01]} 69. Rb8 {[%emt 0:02:52]} Kg6 {[%emt 0:00:06]} 70. Kg3 {[%emt 0:01:02]} Rf5 {[%emt 0:01:56]} 71. Rb6+ {[%emt 0:00:06]} f6 {[%emt 0:00:29]} 72. gxf6 {[%emt 0:00:06]} Kxh6 {[%emt 0:00:13]} 73. Kg4 {[%emt 0:00:05]} Rf1 {[%emt 0:00:05]} 1/2-1/2

[Event "Prague Festival Open 2022"]
[Site "Prague"]
[Date "2022.06.14"]
[Round "6.3"]
[White "Sedlak, Nikola"]
[Black "Stremavicius, Titas"]
[Result "1/2-1/2"]
[ECO "A08"]
[WhiteElo "2476"]
[BlackElo "2508"]
[Annotator "RC"]
[PlyCount "185"]
[EventDate "2022.06.10"]
[EventType "swiss"]
[EventCountry "CZE"]
[SourceTitle "playchess.com"]
[Source "ChessBase"]
[SourceQuality "1"]
[TimeControl "40/5400+30:1800+30"]

1. Nf3 {[%emt 0:00:14]} d5 {[%emt 0:00:23]} 2. g3 {[%emt 0:00:42]} c5 {[%emt 0:01:27]} 3. Bg2 {[%emt 0:01:44]} Nc6 {[%emt 0:00:11]} 4. O-O {[%emt 0:03:19]} e5 {[%emt 0:00:20]} 5. d3 {[%emt 0:00:09]} Be7 {[%emt 0:00:23]} 6. e4 {[%emt 0:01:18]} d4 {[%emt 0:00:18]} 7. Na3 {[%emt 0:03:10]} h5 {[%emt 0:02:59]} 8. Nc4 {[%emt 0:00:46]} Qc7 {[%emt 0:00:10]} 9. c3 {[%emt 0:02:14]} b5 {[%emt 0:02:54]} 10. Ncd2 {[%emt 0:02:56]} h4 {[%emt 0:21:25]} 11. a4 {[%emt 0:00:58]} b4 {[%emt 0:00:33]} 12. cxd4 {[%emt 0:00:29]} cxd4 {[%emt 0:00:16]} 13. Qc2 {[%emt 0:08:08]} Bd7 {[%emt 0:00:28]} 14. Nc4 {[%emt 0:03:40]} Rc8 {[%emt 0:00:34]} 15. Nxh4 {[%emt 0:07:00]} Bxh4 {[%emt 0:00:40]} 16. gxh4 {[%emt 0:00:06]} Nge7 {[%emt 0:08:35]} 17. f4 {[%emt 0:00:47]} Ng6 {[%emt 0:00:06]} 18. fxe5 {[%emt 0:00:35]} Ncxe5 {[%emt 0:01:05]} 19. Qf2 {[%emt 0:00:22]} Be6 {[%emt 0:02:18]} 20. Nxe5 {[%emt 0:00:18]} Qxe5 {[%emt 0:01:27]} 21. Bg5 {[%emt 0:14:05]} f6 {[%emt 0:01:07]} 22. Rac1 {[%emt 0:09:38]} Rxc1 {[%emt 0:08:29]} 23. Bxc1 {[%emt 0:00:08]} Rxh4 {[%emt 0:02:26]} 24. Bf3 {[%emt 0:05:59]} a5 {[%emt 0:02:47]} 25. Kh1 {[%emt 0:06:06]} Rh3 {[%emt 0:10:23]} 26. Rg1 {[%emt 0:02:31]} Nh4 {[%emt 0:03:24]} 27. Be2 {[%emt 0:05:52]} g5 {[%emt 0:00:20]} 28. b3 {[%emt 0:05:46]} Ng6 {[%emt 0:09:18]} 29. Bb2 {[%emt 0:02:18]} Qf4 {[%emt 0:02:08]} 30. Bxd4 {[%emt 0:00:53]} Qxf2 {[%emt 0:04:43]} 31. Bxf2 {[%emt 0:00:09]} Bxb3 {[%emt 0:00:05]} 32. Bb6 {[%emt 0:01:15]} Nf4 {[%emt 0:03:41]} 33. Bf1 {[%emt 0:00:39]} Rh7 {[%emt 0:00:05]} 34. Bxa5 {[%emt 0:00:11]} Rb7 {[%emt 0:00:01]} 35. h4 {[%emt 0:03:01]} Bc2 {[%emt 0:04:10]} 36. Bxb4 {[%emt 0:01:28]} Rxb4 {[%emt 0:00:06]} 37. hxg5 {[%emt 0:00:03]} fxg5 {[%emt 0:03:32]} 38. Rxg5 {[%emt 0:00:24]} Rb1 {[%emt 0:00:08]} 39. Rg1 {[%emt 0:00:04]} Ke7 {[%emt 0:00:30]} 40. a5 {[%emt 0:04:09]} Ra1 {[%emt 0:00:28]} 41. Kh2 {[%emt 0:30:50]} Kf6 {[%emt 0:32:13]} 42. a6 {[%emt 0:04:09]} Rxa6 {[%emt 0:00:00]} 43. Kg3 {[%emt 0:00:00]} Ne6 {[%emt 0:00:00]} 44. Rg2 {[%emt 0:00:00]} Rc6 {[%emt 0:00:00]} 45. Kf3 {[%emt 0:00:00]} Bd1+ {[%emt 0:00:00]} 46. Ke3 {[%emt 0:00:00]} Bh5 {[%emt 0:00:00]} 47. Rf2+ {[%emt 0:00:00]} Ke7 {[%emt 0:00:00]} 48. Bh3 {[%emt 0:00:00]} Nc7 {[%emt 0:00:00]} 49. Bf5 {[%emt 0:00:00]} Rc3 {[%emt 0:00:00]} 50. Rb2 {[%emt 0:00:00]} Be8 {[%emt 0:00:00]} 51. Kd4 {[%emt 0:00:00]} Rc1 {[%emt 0:00:00]} 52. Ke5 {[%emt 0:00:00]} Nb5 {[%emt 0:00:00]} 53. d4 {[%emt 0:00:00]} Nd6 {[%emt 0:00:00]} 54. Ra2 {[%emt 0:00:00]} Nc4+ {[%emt 0:00:00]} 55. Kf4 {[%emt 0:00:00]} Rf1+ {[%emt 0:00:00]} 56. Kg5 {[%emt 0:00:00]} Nd6 {[%emt 0:00:00]} 57. Ra7+ {[%emt 0:00:00]} Kf8 {[%emt 0:00:00]} 58. Ra6 {[%emt 0:00:00]} Ke7 {[%emt 0:00:00]} 59. Ra7+ {[%emt 0:00:00]} Kd8 {[%emt 0:00:00]} 60. Ra8+ {[%emt 0:00:00]} Kc7 {[%emt 0:00:00]} 61. Ra7+ {[%emt 0:00:00]} Kb6 {[%emt 0:00:00]} 62. Re7 {[%emt 0:00:00]} Ba4 {[%emt 0:01:31]} 63. Bh7 {[%emt 0:00:00]} Bb3 {[%emt 0:00:57]} 64. Bf5 {[%emt 0:01:51]} Nb5 {[%emt 0:02:55]} 65. d5 {[%emt 0:00:45]} Nd6 {[%emt 0:02:59]} 66. Kf6 {[%emt 0:02:42]} Bc2 {[%emt 0:00:26]} 67. Ke5 {[%emt 0:01:55]} Nxf5 {[%emt 0:00:34]} 68. exf5 {[%emt 0:00:07]} Rxf5+ {[%emt 0:00:05]} 69. Kd6 {[%emt 0:00:17]} Rh5 {[%emt 0:00:27]} 70. Re2 {[%emt 0:02:04]} Ba4 {[%emt 0:00:26]} 71. Rb2+ {[%emt 0:00:29]} Bb5 {[%emt 0:00:08]} 72. Rc2 {[%emt 0:00:37]} Rh8 {[%emt 0:00:47]} 73. Rc1 {[%emt 0:00:21]} Rg8 {[%emt 0:01:00]} 74. Rc2 {[%emt 0:00:09]} Rd8+ {[%emt 0:00:09]} 75. Ke6 {[%emt 0:00:17]} Ba4 {[%emt 0:00:07]} 76. Rc1 {[%emt 0:00:19]} Rh8 {[%emt 0:00:16]} 77. Ke7 {[%emt 0:01:48]} Rh3 {[%emt 0:00:30]} 78. Kd6 {[%emt 0:01:36]} Bb3 {[%emt 0:00:58]} 79. Rc6+ {[%emt 0:00:05]} Kb5 {[%emt 0:00:12]} 80. Rc5+ {[%emt 0:00:05]} Kb4 {[%emt 0:00:12]} 81. Rc6 {[%emt 0:00:33]} Rh6+ {[%emt 0:02:16]} 82. Kc7 {[%emt 0:00:24]} Rh7+ {[%emt 0:00:05]} 83. Kd6 {[%emt 0:00:03]} Ba2 {[%emt 0:02:36]} 84. Rb6+ {[%emt 0:00:55]} Kc3 {[%emt 0:01:19]} 85. Kc6 {[%emt 0:00:25]} Kd4 {[%emt 0:01:18]} 86. Rb5 {[%emt 0:00:25]} Ke4 {[%emt 0:02:21]} 87. d6 {[%emt 0:01:40]} Be6 {[%emt 0:00:02]} 88. Ra5 {[%emt 0:01:10]} Bd7+ {[%emt 0:00:20]} 89. Kb6 {[%emt 0:00:06]} Kd4 {[%emt 0:01:34]} 90. Rg5 {[%emt 0:00:18]} Rf7 {[%emt 0:00:23]} 91. Rh5 {[%emt 0:00:19]} Rg7 {[%emt 0:00:03]} 92. Ra5 {[%emt 0:00:07]} Bg4 {[%emt 0:00:10]} 93. Ra4+ {[%emt 0:00:58]} 1/2-1/2

[Event "Prague Festival Open 2022"]
[Site "Prague"]
[Date "2022.06.14"]
[Round "6.4"]
[White "Garriga Cazorla, Pere"]
[Black "Domalchuk-Jonasson, Aleksandr"]
[Result "1-0"]
[ECO "D28"]
[WhiteElo "2495"]
[BlackElo "2190"]
[Annotator "RC"]
[PlyCount "103"]
[EventDate "2022.06.10"]
[EventType "swiss"]
[EventCountry "CZE"]
[SourceTitle "playchess.com"]
[Source "ChessBase"]
[SourceQuality "1"]
[TimeControl "40/5400+30:1800+30"]

1. d4 {[%emt 0:00:04]} d5 {[%emt 0:00:11]} 2. c4 {[%emt 0:04:36]} dxc4 {[%emt 0:00:11]} 3. e3 {[%emt 0:00:06]} Nf6 {[%emt 0:00:20]} 4. Bxc4 {[%emt 0:01:23]} e6 {[%emt 0:00:12]} 5. Nf3 {[%emt 0:01:39]} a6 {[%emt 0:00:13]} 6. O-O {[%emt 0:00:30]} b5 {[%emt 0:00:12]} 7. Bd3 {[%emt 0:01:36]} Bb7 {[%emt 0:00:16]} 8. a4 {[%emt 0:00:07]} b4 {[%emt 0:00:11]} 9. Qe2 {[%emt 0:03:05]} c5 {[%emt 0:00:18]} 10. e4 {[%emt 0:00:05]} cxd4 {[%emt 0:01:57]} 11. Nbd2 {[%emt 0:00:07]} Be7 {[%emt 0:13:06]} 12. e5 {[%emt 0:02:44]} Nfd7 {[%emt 0:01:36]} 13. Nb3 {[%emt 0:04:35]} Nc5 {[%emt 0:10:12]} 14. Nxc5 {[%emt 0:05:23]} Bxc5 {[%emt 0:00:04]} 15. Ng5 {[%emt 0:07:15]} Qd5 {[%emt 0:10:14]} 16. Qg4 {[%emt 0:12:11]} Nc6 {[%emt 0:13:15]} 17. Bf4 {[%emt 0:21:38]} h6 {[%emt 0:07:35]} 18. Ne4 {[%emt 0:05:14]} Be7 {[%emt 0:01:45]} 19. Qxg7 {[%emt 0:07:11]} O-O-O {[%emt 0:00:56]} 20. Rac1 {[%emt 0:01:04]} Kb8 {[%emt 0:15:34]} 21. Nf6 {[%emt 0:00:39]} Bxf6 {[%emt 0:00:55]} 22. Qxf6 {[%emt 0:00:06]} Ne7 {[%emt 0:01:16]} 23. f3 {[%emt 0:01:05]} Qd7 {[%emt 0:00:47]} 24. a5 {[%emt 0:03:22]} Rhg8 {[%emt 0:05:39]} 25. Qh4 {[%emt 0:03:39]} Nd5 {[%emt 0:04:28]} 26. Rfe1 {[%emt 0:00:27]} Rg7 {[%emt 0:05:00]} 27. Rc4 {[%emt 0:01:05]} Nxf4 {[%emt 0:02:19]} 28. Qxf4 {[%emt 0:00:06]} Qd5 {[%emt 0:00:09]} 29. Kf1 {[%emt 0:05:29]} Qxa5 {[%emt 0:00:58]} 30. Rxd4 {[%emt 0:01:02]} Rxd4 {[%emt 0:00:16]} 31. Qxd4 {[%emt 0:00:01]} Rg8 {[%emt 0:00:13]} 32. Qd6+ {[%emt 0:01:26]} Ka8 {[%emt 0:00:24]} 33. Be4 {[%emt 0:01:38]} Rd8 {[%emt 0:01:10]} 34. Bxb7+ {[%emt 0:00:24]} Kxb7 {[%emt 0:00:04]} 35. Qe7+ {[%emt 0:00:26]} Ka8 {[%emt 0:02:39]} 36. Qxf7 {[%emt 0:00:40]} Qb6 {[%emt 0:00:03]} 37. Qf4 {[%emt 0:00:49]} h5 {[%emt 0:01:42]} 38. Rc1 {[%emt 0:00:53]} h4 {[%emt 0:00:26]} 39. Qe4+ {[%emt 0:02:39]} Rd5 {[%emt 0:01:17]} 40. Qc4 {[%emt 0:01:36]} Qb5 {[%emt 0:01:52]} 41. Qxb5 {[%emt 0:31:46]} Rxb5 {[%emt 0:30:22]} 42. f4 {[%emt 0:00:30]} Kb7 {[%emt 0:00:00]} 43. Ke2 {[%emt 0:00:00]} b3 {[%emt 0:00:00]} 44. g4 {[%emt 0:00:00]} hxg3 {[%emt 0:00:00]} 45. hxg3 {[%emt 0:00:00]} a5 {[%emt 0:00:00]} 46. g4 {[%emt 0:00:00]} a4 {[%emt 0:00:00]} 47. g5 {[%emt 0:00:00]} a3 {[%emt 0:00:00]} 48. bxa3 {[%emt 0:00:00]} b2 {[%emt 0:00:00]} 49. Rb1 {[%emt 0:00:00]} Rb3 {[%emt 0:00:00]} 50. g6 {[%emt 0:00:00]} Kc6 {[%emt 0:00:00]} 51. Kf2 {[%emt 0:00:00]} Rh3 {[%emt 0:00:00]} 52. g7 {[%emt 0:00:00]} 1-0

[Event "Prague Festival Open 2022"]
[Site "Prague"]
[Date "2022.06.14"]
[Round "6.5"]
[White "Hilby, Craig"]
[Black "Petr, Martin"]
[Result "0-1"]
[ECO "E04"]
[WhiteElo "2420"]
[BlackElo "2488"]
[Annotator "RC"]
[PlyCount "118"]
[EventDate "2022.06.10"]
[EventType "swiss"]
[EventCountry "CZE"]
[SourceTitle "playchess.com"]
[Source "ChessBase"]
[SourceQuality "1"]
[TimeControl "40/5400+30:1800+30"]

1. d4 {[%emt 0:00:05]} d5 {[%emt 0:00:12]} 2. c4 {[%emt 0:00:07]} e6 {[%emt 0:00:05]} 3. Nf3 {[%emt 0:00:07]} Nf6 {[%emt 0:00:06]} 4. g3 {[%emt 0:00:13]} dxc4 {[%emt 0:00:05]} 5. Bg2 {[%emt 0:00:20]} c5 {[%emt 0:00:06]} 6. O-O {[%emt 0:01:52]} Nc6 {[%emt 0:00:06]} 7. Ne5 {[%emt 0:02:39]} Bd7 {[%emt 0:00:09]} 8. Na3 {[%emt 0:00:49]} cxd4 {[%emt 0:00:05]} 9. Naxc4 {[%emt 0:00:10]} Be7 {[%emt 0:00:11]} 10. Bf4 {[%emt 0:00:54]} Rc8 {[%emt 0:21:18]} 11. Qb3 {[%emt 0:08:27]} Nxe5 {[%emt 0:00:59]} 12. Nxe5 {[%emt 0:20:55]} Bc6 {[%emt 0:00:06]} 13. Nxc6 {[%emt 0:02:13]} bxc6 {[%emt 0:00:02]} 14. Rfd1 {[%emt 0:10:52]} Nd5 {[%emt 0:14:18]} 15. Be5 {[%emt 0:03:31]} Bf6 {[%emt 0:02:00]} 16. Bxf6 {[%emt 0:03:05]} Qxf6 {[%emt 0:03:49]} 17. Qa4 {[%emt 0:00:38]} O-O {[%emt 0:02:12]} 18. Qxd4 {[%emt 0:00:10]} Qxd4 {[%emt 0:09:44]} 19. Rxd4 {[%emt 0:00:03]} Nb6 {[%emt 0:00:12]} 20. Rc1 {[%emt 0:07:22]} c5 {[%emt 0:02:00]} 21. Rd2 {[%emt 0:00:08]} Rc7 {[%emt 0:00:32]} 22. Kf1 {[%emt 0:04:00]} Rfc8 {[%emt 0:01:10]} 23. Rcd1 {[%emt 0:07:12]} Kf8 {[%emt 0:00:13]} 24. Rd8+ {[%emt 0:00:07]} Ke7 {[%emt 0:02:20]} 25. Rxc8 {[%emt 0:00:13]} Rxc8 {[%emt 0:00:01]} 26. Ke1 {[%emt 0:01:29]} c4 {[%emt 0:07:10]} 27. Kd2 {[%emt 0:02:11]} Rd8+ {[%emt 0:04:06]} 28. Kc2 {[%emt 0:00:39]} Rxd1 {[%emt 0:00:04]} 29. Kxd1 {[%emt 0:00:04]} Kd6 {[%emt 0:00:12]} 30. Kc2 {[%emt 0:01:24]} Kc5 {[%emt 0:01:12]} 31. h4 {[%emt 0:03:56]} Nd5 {[%emt 0:04:40]} 32. a3 {[%emt 0:04:26]} Nf6 {[%emt 0:03:45]} 33. Bf3 {[%emt 0:00:12]} h5 {[%emt 0:00:23]} 34. Kc3 {[%emt 0:01:47]} e5 {[%emt 0:02:23]} 35. Kd2 {[%emt 0:11:14]} g6 {[%emt 0:01:55]} 36. Ke3 {[%emt 0:01:13]} a5 {[%emt 0:03:13]} 37. Bb7 {[%emt 0:01:04]} Ng4+ {[%emt 0:02:31]} 38. Kf3 {[%emt 0:00:18]} Nf6 {[%emt 0:03:31]} 39. Ke3 {[%emt 0:00:10]} Ne8 {[%emt 0:00:51]} 40. Be4 {[%emt 0:01:59]} Nd6 {[%emt 0:03:22]} 41. Bc2 {[%emt 0:05:44]} c3 {[%emt 0:03:21]} 42. bxc3 {[%emt 0:00:43]} Nc4+ {[%emt 0:00:05]} 43. Kd3 {[%emt 0:01:58]} Nxa3 {[%emt 0:00:54]} 44. Bb3 {[%emt 0:00:47]} Nc4 {[%emt 0:00:02]} 45. e4 {[%emt 0:01:04]} Nd6 {[%emt 0:00:09]} 46. f3 {[%emt 0:05:13]} f5 {[%emt 0:02:32]} 47. Bg8 {[%emt 0:02:10]} a4 {[%emt 0:02:33]} 48. Bh7 {[%emt 0:01:29]} a3 {[%emt 0:02:14]} 49. Bg8 {[%emt 0:00:09]} Ne8 {[%emt 0:09:22]} 50. Be6 {[%emt 0:06:10]} Kd6 {[%emt 0:02:00]} 51. Bf7 {[%emt 0:01:18]} Nf6 {[%emt 0:03:35]} 52. Bc4 {[%emt 0:01:11]} Kc5 {[%emt 0:03:08]} 53. Bf7 {[%emt 0:00:18]} Kd6 {[%emt 0:01:13]} 54. Bc4 {[%emt 0:00:09]} Ke7 {[%emt 0:03:24]} 55. Ke3 {[%emt 0:02:33]} Nd7 {[%emt 0:00:37]} 56. f4 {[%emt 0:03:21]} Kf6 {[%emt 0:00:14]} 57. Ba2 {[%emt 0:01:43]} Nc5 {[%emt 0:00:32]} 58. fxe5+ {[%emt 0:00:37]} Kxe5 {[%emt 0:00:03]} 59. exf5 {[%emt 0:00:07]} gxf5 {[%emt 0:00:22]} 0-1

[Event "Prague Festival Open 2022"]
[Site "Prague"]
[Date "2022.06.14"]
[Round "6.6"]
[White "Huzman, Alexander"]
[Black "Mladek, Richard"]
[Result "0-1"]
[ECO "D33"]
[WhiteElo "2541"]
[BlackElo "2361"]
[Annotator "RC"]
[PlyCount "72"]
[EventDate "2022.06.10"]
[EventType "swiss"]
[EventCountry "CZE"]
[SourceTitle "playchess.com"]
[Source "ChessBase"]
[SourceQuality "1"]
[TimeControl "40/5400+30:1800+30"]

1. Nf3 {[%emt 0:00:04]} d5 {[%emt 0:00:09]} 2. d4 {[%emt 0:00:11]} e6 {[%emt 0:00:20]} 3. c4 {[%emt 0:00:23]} Nf6 {[%emt 0:00:08]} 4. Nc3 {[%emt 0:00:30]} c5 {[%emt 0:02:11]} 5. cxd5 {[%emt 0:03:20]} exd5 {[%emt 0:00:08]} 6. g3 {[%emt 0:01:16]} Nc6 {[%emt 0:00:08]} 7. Bg2 {[%emt 0:00:37]} cxd4 {[%emt 0:01:31]} 8. Nxd4 {[%emt 0:01:08]} Bc5 {[%emt 0:00:06]} 9. Nb3 {[%emt 0:00:15]} Bb6 {[%emt 0:00:09]} 10. O-O {[%emt 0:00:08]} d4 {[%emt 0:00:04]} 11. Na4 {[%emt 0:00:53]} O-O {[%emt 0:00:13]} 12. Re1 {[%emt 0:00:09]} Re8 {[%emt 0:00:25]} 13. Bg5 {[%emt 0:02:45]} h6 {[%emt 0:01:33]} 14. Nxb6 {[%emt 0:04:48]} axb6 {[%emt 0:00:20]} 15. Bxc6 {[%emt 0:00:30]} bxc6 {[%emt 0:00:02]} 16. Bxf6 {[%emt 0:00:03]} Qxf6 {[%emt 0:00:10]} 17. Qxd4 {[%emt 0:00:02]} Qd8 {[%emt 0:00:09]} 18. Qc3 {[%emt 0:08:18]} c5 {[%emt 0:01:22]} 19. Rad1 {[%emt 0:01:51]} Qc7 {[%emt 0:00:49]} 20. Nc1 {[%emt 0:01:37]} Ba6 {[%emt 0:12:27]} 21. f3 {[%emt 0:03:50]} Re7 {[%emt 0:01:04]} 22. Kf2 {[%emt 0:06:09]} Rae8 {[%emt 0:04:17]} 23. Rd2 {[%emt 0:20:58]} h5 {[%emt 0:06:50]} 24. Rd5 {[%emt 0:03:54]} h4 {[%emt 0:07:03]} 25. e4 {[%emt 0:01:03]} Qc8 {[%emt 0:15:25]} 26. Rh5 {[%emt 0:06:36]} Rd8 {[%emt 0:00:54]} 27. gxh4 {[%emt 0:05:06]} Qh3 {[%emt 0:05:29]} 28. Kg1 {[%emt 0:02:43]} Rxe4 {[%emt 0:07:00]} 29. fxe4 {[%emt 0:00:23]} Qg4+ {[%emt 0:00:06]} 30. Qg3 {[%emt 0:00:09]} Qxh5 {[%emt 0:00:03]} 31. Qg5 {[%emt 0:00:10]} Qxg5+ {[%emt 0:00:27]} 32. hxg5 {[%emt 0:00:03]} Rd2 {[%emt 0:00:32]} 33. b3 {[%emt 0:00:04]} Kf8 {[%emt 0:16:51]} 34. a3 {[%emt 0:05:56]} g6 {[%emt 0:02:36]} 35. b4 {[%emt 0:00:46]} cxb4 {[%emt 0:00:18]} 36. axb4 {[%emt 0:00:31]} Bc4 {[%emt 0:00:08]} 0-1

[Event "Prague Festival Open 2022"]
[Site "Prague"]
[Date "2022.06.14"]
[Round "6.7"]
[White "Sankalp Gupta"]
[Black "Simek, Petr"]
[Result "1-0"]
[ECO "E52"]
[WhiteElo "2505"]
[BlackElo "2332"]
[Annotator "RC"]
[PlyCount "65"]
[EventDate "2022.06.10"]
[EventType "swiss"]
[EventCountry "CZE"]
[SourceTitle "playchess.com"]
[Source "ChessBase"]
[SourceQuality "1"]
[TimeControl "40/5400+30:1800+30"]

1. d4 {[%emt 0:03:30]} Nf6 {[%emt 0:00:14]} 2. Nf3 {[%emt 0:00:06]} d5 {[%emt 0:00:40]} 3. c4 {[%emt 0:00:02]} e6 {[%emt 0:00:12]} 4. Nc3 {[%emt 0:00:02]} Bb4 {[%emt 0:00:03]} 5. e3 {[%emt 0:04:58]} O-O {[%emt 0:01:00]} 6. Bd2 {[%emt 0:00:19]} b6 {[%emt 0:01:53]} 7. cxd5 {[%emt 0:00:08]} exd5 {[%emt 0:00:07]} 8. Bd3 {[%emt 0:00:13]} Bb7 {[%emt 0:04:22]} 9. O-O {[%emt 0:09:29]} Re8 {[%emt 0:05:27]} 10. Rc1 {[%emt 0:04:12]} Bf8 {[%emt 0:01:18]} 11. Ne5 {[%emt 0:17:02]} c5 {[%emt 0:01:52]} 12. Bb5 {[%emt 0:00:33]} Re6 {[%emt 0:17:05]} 13. Ne2 {[%emt 0:07:39]} Bd6 {[%emt 0:36:20]} 14. f4 {[%emt 0:03:45]} Ne4 {[%emt 0:02:48]} 15. Ng3 {[%emt 0:00:17]} Nxg3 {[%emt 0:05:54]} 16. hxg3 {[%emt 0:00:02]} f6 {[%emt 0:05:40]} 17. Qh5 {[%emt 0:02:26]} Re7 {[%emt 0:05:34]} 18. Nf3 {[%emt 0:05:29]} Nd7 {[%emt 0:01:41]} 19. g4 {[%emt 0:00:46]} g6 {[%emt 0:02:34]} 20. Qh4 {[%emt 0:00:49]} Rc8 {[%emt 0:02:02]} 21. Bd3 {[%emt 0:06:02]} Qe8 {[%emt 0:03:15]} 22. Rce1 {[%emt 0:00:16]} Qf7 {[%emt 0:00:41]} 23. g5 {[%emt 0:00:56]} f5 {[%emt 0:00:46]} 24. Ne5 {[%emt 0:04:07]} Bxe5 {[%emt 0:00:29]} 25. fxe5 {[%emt 0:00:02]} Qe6 {[%emt 0:00:15]} 26. g4 {[%emt 0:01:11]} fxg4 {[%emt 0:00:13]} 27. Be2 {[%emt 0:00:13]} Rf8 {[%emt 0:00:53]} 28. Bxg4 {[%emt 0:00:16]} Rxf1+ {[%emt 0:00:29]} 29. Rxf1 {[%emt 0:00:06]} Qc6 {[%emt 0:00:03]} 30. Qf2 {[%emt 0:01:58]} Qc8 {[%emt 0:00:53]} 31. e6 {[%emt 0:01:02]} Nf8 {[%emt 0:00:11]} 32. Qf7+ {[%emt 0:01:19]} Rxf7 {[%emt 0:00:10]} 33. exf7+ {[%emt 0:00:03]} 1-0